bitfinex-derivatives/quotes_BTCF0:USTF0_20260315
["timestamp","ask_amount","ask_price","bid_price","bid_amount"]
[1773593137400,0.0014,71508.0,71499.0,0.041947]
[1773593137697,0.0014,71506.0,71499.0,0.041947]
[1773593137893,0.041941,71511.0,71499.0,0.041947]
[1773593138102,0.0014,71505.0,71499.0,0.041947]
[1773593138498,0.0014,71504.0,71499.0,0.041947]
[1773593138697,0.0014,71503.0,71499.0,0.041947]
[1773593139001,0.0014,71502.0,71499.0,0.041947]
[1773593139200,0.041941,71511.0,71499.0,0.041947]
[1773593139402,0.0014,71508.0,71499.0,0.041947]
[1773593139808,0.0014,71507.0,71499.0,0.041947]
[1773593140308,0.0014,71506.0,71499.0,0.041947]
[1773593140807,0.0014,71505.0,71499.0,0.041947]
[1773593141199,0.0014,71508.0,71499.0,0.041947]
[1773593141399,0.0014,71504.0,71499.0,0.041947]
[1773593141601,0.0014,71503.0,71499.0,0.041947]
[1773593141800,0.0014,71502.0,71499.0,0.041947]
[1773593142002,0.0014,71501.0,71499.0,0.041947]
[1773593142205,0.041941,71511.0,71499.0,0.041947]
[1773593142402,0.0014,71510.0,71499.0,0.041947]
[1773593142705,0.0014,71508.0,71499.0,0.041947]
[1773593143108,0.0028,71505.0,71499.0,0.041947]
[1773593143312,0.0014,71504.0,71499.0,0.041947]
[1773593143807,0.0014,71503.0,71499.0,0.041947]
[1773593144310,0.0014,71502.0,71499.0,0.041947]
[1773593144711,0.0014,71508.0,71499.0,0.041947]
[1773593145015,0.0014,71507.0,71499.0,0.041947]
[1773593146023,0.0028,71506.0,71499.0,0.041947]
[1773593149816,0.0028,71506.0,71500.0,0.041947]
[1773593150618,0.0014,71505.0,71500.0,0.041947]
[1773593151715,0.0014,71508.0,71500.0,0.041947]
[1773593151915,0.076105,71517.0,71500.0,0.08804875]
[1773593152120,0.24050268,71516.0,71505.0,0.041944]
[1773593152422,0.0028,71514.0,71508.0,0.041942]
[1773593152616,0.0014,71513.0,71508.0,0.041942]
[1773593152824,0.19992356,71512.0,71508.0,0.041942]
[1773593153009,0.07610029,71522.0,71500.0,0.08804875]
[1773593153212,0.19983087,71521.0,71510.0,0.12998975]
[1773593153421,0.19843087,71520.0,71510.0,0.041941]
[1773593153618,0.19843087,71519.0,71510.0,0.041941]
[1773593153818,0.20123087,71518.0,71508.0,0.041942]
[1773593154118,0.0028,71518.0,71508.0,0.041942]
[1773593155315,0.0028,71518.0,71512.0,0.00736]
[1773593156219,0.00736,71514.0,71512.0,0.00736]
[1773593156419,0.0014,71513.0,71512.0,0.00736]
[1773593159315,0.00736,71514.0,71512.0,0.00736]
[1773593159515,0.0014,71513.0,71512.0,0.00736]
[1773593163521,0.07625148,71508.0,71491.0,0.30908455]
[1773593163729,0.07625148,71498.0,71472.0,0.4190862]
[1773593163924,0.07625148,71496.0,71472.0,0.45455097]
[1773593164228,0.07625148,71496.0,71487.0,0.041954]
[1773593164427,0.07625148,71496.0,71489.0,0.041953]
[1773593164622,0.07625148,71496.0,71491.0,0.041952]
[1773593165323,0.07625148,71496.0,71487.0,0.041954]
[1773593165536,0.07625148,71496.0,71488.0,0.041954]
[1773593166226,0.07625148,71496.0,71490.0,0.041953]
[1773593166424,0.07905148,71496.0,71490.0,0.041953]
[1773593167632,0.07905148,71496.0,71488.0,0.041954]
[1773593167840,0.07905148,71496.0,71489.0,0.041953]
[1773593173524,0.07531632,71508.0,71477.0,0.00736]
[1773593173725,0.07531632,71505.0,71492.0,0.041951]
[1773593173932,0.07671632,71504.0,71492.0,0.041951]
[1773593174937,0.07671632,71504.0,71480.0,0.08804875]
[1773593174938,0.07531366,71503.0,71490.0,0.041953]
[1773593175137,0.07521107,71502.0,71491.0,0.041952]
[1773593180341,0.07521107,71502.0,71492.0,0.041951]
[1773593182846,0.07301107,71502.0,71492.0,0.041951]
[1773593185849,0.07472222,71501.0,71491.0,0.041952]
[1773593188247,0.043345,71504.0,71480.0,0.08804875]
[1773593188248,0.07470558,71500.0,71480.0,0.08804875]
[1773593188449,0.07470558,71503.0,71485.0,0.041956]
[1773593188749,0.07470558,71498.0,71486.0,0.041955]
[1773593188950,0.07470558,71498.0,71487.0,0.041954]
[1773593189149,0.07470021,71496.0,71487.0,0.041954]
[1773593189745,0.07470021,71496.0,71480.0,0.08804875]
[1773593190543,0.11665021,71496.0,71477.0,0.00736]
[1773593190749,0.07470021,71496.0,71477.0,0.00736]
[1773593191753,0.07470021,71496.0,71486.0,0.041955]
[1773593193342,0.07472469,71494.0,71486.0,0.041955]
[1773593201850,0.07472469,71494.0,71477.0,0.00736]
[1773593202050,0.07472469,71494.0,71486.0,0.041955]
[1773593206862,0.07472469,71494.0,71487.0,0.041954]
[1773593208862,0.0014,71493.0,71487.0,0.041954]
[1773593209061,0.07456245,71492.0,71487.0,0.041954]
[1773593213870,0.07456245,71492.0,71485.0,0.041956]
[1773593216970,0.07456245,71492.0,71486.0,0.041955]
[1773593220864,0.07456245,71492.0,71477.0,0.00736]
[1773593221063,0.07456245,71492.0,71483.0,0.041957]
[1773593221267,0.07456245,71492.0,71484.0,0.041956]
[1773593221665,0.0014,71493.0,71477.0,0.00736]
[1773593221666,0.07441251,71490.0,71477.0,0.00736]
[1773593221870,0.07441251,71487.0,71478.0,0.04196]
[1773593222378,0.07441251,71487.0,71476.0,0.041961]
[1773593222769,0.0014,71486.0,71476.0,0.041961]
[1773593223080,0.07442973,71485.0,71476.0,0.041961]
[1773593223280,0.07442973,71485.0,71477.0,0.04196]
[1773593226870,0.07442973,71485.0,71478.0,0.04196]
[1773593229577,0.07442973,71485.0,71470.0,0.08808981]
[1773593230084,0.07392973,71485.0,71470.0,0.08808981]
[1773593230984,0.07392973,71485.0,71475.0,0.041962]
[1773593234689,0.07472464,71507.0,71475.0,0.08808981]
[1773593234882,0.07472464,71496.0,71485.0,0.041955]
[1773593235083,0.07612016,71495.0,71485.0,0.041955]
[1773593235685,0.07472016,71495.0,71485.0,0.041955]
[1773593235884,0.07612016,71494.0,71485.0,0.041955]
[1773593236085,0.07612016,71494.0,71483.0,0.041957]
[1773593236286,0.0014,71493.0,71483.0,0.041957]
[1773593236689,0.07472016,71494.0,71483.0,0.041957]
[1773593236895,0.0014,71492.0,71483.0,0.041957]
[1773593237195,0.07472016,71494.0,71484.0,0.041956]
[1773593237396,0.0014,71491.0,71484.0,0.041956]
[1773593237598,0.0014,71491.0,71482.0,0.041957]
[1773593237903,0.07492398,71489.0,71482.0,0.041957]
[1773593239194,0.07492398,71489.0,71480.0,0.13004781]
[1773593239397,0.07492398,71489.0,71481.0,0.041958]
[1773593248906,0.07492398,71489.0,71479.0,0.13004881]
[1773593252205,0.0768925,71485.0,71469.0,0.00736]
[1773593252411,0.0725925,71485.0,71475.0,0.041961]
[1773593252606,0.0725925,71485.0,71476.0,0.041961]
[1773593253610,0.07603052,71483.0,71476.0,0.041961]
[1773593254813,0.07603052,71483.0,71474.0,0.041962]
[1773593261323,0.07603052,71483.0,71475.0,0.041962]
[1773593261511,0.07603052,71483.0,71470.0,0.08808981]
[1773593262722,0.07603052,71483.0,71475.0,0.041961]
[1773593272228,0.07603052,71483.0,71473.0,0.041963]
[1773593276721,0.07603052,71483.0,71469.0,0.049325]
[1773593276722,0.07628869,71482.0,71469.0,0.049325]
[1773593277229,0.07627351,71481.0,71469.0,0.049325]
[1773593278233,0.07627351,71481.0,71469.0,0.041965]
[1773593279428,0.07627351,71481.0,71470.0,0.041964]
[1773593285548,0.07627351,71481.0,71470.0,0.13006858]
[1773593288043,0.07627351,71481.0,71470.0,0.08810458]
[1773593289041,0.07627351,71481.0,71472.0,0.041963]
[1773593301959,0.07627351,71481.0,71470.0,0.13006858]
[1773593303053,0.07627351,71481.0,71471.0,0.041964]
[1773593306251,0.07626214,71479.0,71461.0,0.00017579]
[1773593306453,0.07626214,71477.0,71470.0,0.08810458]
[1773593306657,0.07626214,71475.0,71470.0,0.08810458]
[1773593307651,0.06972066,71475.0,71470.0,0.08810458]
[1773593307947,0.06972066,71475.0,71465.0,0.041967]
[1773593309945,0.06972066,71475.0,71461.0,0.00017579]
[1773593310256,0.09532768,71489.0,71469.0,0.041965]
[1773593310257,0.0014,71474.0,71469.0,0.041965]
[1773593310559,0.0014,71473.0,71469.0,0.041965]
[1773593310753,0.0014,71472.0,71469.0,0.041965]
[1773593311060,0.0014,71471.0,71469.0,0.041965]
[1773593311263,0.06098996,71481.0,71469.0,0.041965]
[1773593311454,0.06105743,71479.0,71469.0,0.041965]
[1773593312264,0.06105743,71479.0,71469.0,0.042965]
[1773593312771,0.06105743,71479.0,71469.0,0.13106958]
[1773593314174,0.06105743,71479.0,71469.0,0.13006958]
[1773593315969,0.06238217,71478.0,71469.0,0.13006958]
[1773593316555,0.06238217,71478.0,71470.0,0.041964]
[1773593318771,0.06092527,71477.0,71466.0,0.041967]
[1773593319272,0.06092527,71477.0,71467.0,0.041966]
[1773593319875,0.06080815,71472.0,71463.0,0.041969]
[1773593320073,0.0014,71471.0,71464.0,0.041968]
[1773593320373,0.0014,71470.0,71464.0,0.041968]
[1773593320570,0.0014,71469.0,71464.0,0.041968]
[1773593320775,0.0014,71468.0,71464.0,0.041968]
[1773593320975,0.01427261,71472.0,71464.0,0.040568]
[1773593321176,0.0014,71471.0,71464.0,0.040568]
[1773593321377,0.0014,71470.0,71464.0,0.040568]
[1773593321572,0.0014,71469.0,71464.0,0.040568]
[1773593321877,0.0014,71468.0,71464.0,0.041568]
[1773593322069,0.0014,71467.0,71464.0,0.041568]
[1773593322265,0.0014,71466.0,71464.0,0.041568]
[1773593322578,0.0014,71465.0,71464.0,0.041568]
[1773593322876,0.01727883,71475.0,71464.0,0.041568]
[1773593323070,0.0042,71472.0,71464.0,0.041568]
[1773593323376,0.0042,71472.0,71464.0,0.040568]
[1773593323579,0.0014,71471.0,71464.0,0.041568]
[1773593323768,0.0014,71470.0,71464.0,0.041568]
[1773593323969,0.0014,71469.0,71464.0,0.041568]
[1773593324174,0.0014,71468.0,71465.0,0.041967]
[1773593324472,0.0014,71467.0,71465.0,0.041967]
[1773593324673,0.0014,71466.0,71465.0,0.041967]
[1773593325076,0.04196,71478.0,71466.0,0.041967]
[1773593325275,0.0014,71477.0,71466.0,0.041967]
[1773593325580,0.0014,71476.0,71466.0,0.041967]
[1773593325780,0.0014,71476.0,71464.0,0.001]
[1773593326479,0.0014,71476.0,71465.0,0.001]
[1773593326680,0.0014,71476.0,71466.0,0.13007058]
[1773593327080,0.0014,71476.0,71466.0,0.041966]
[1773593338187,0.05111813,71475.0,71461.0,0.00017579]
[1773593338392,0.0014,71476.0,71453.0,0.049344]
[1773593338393,0.05111813,71469.0,71453.0,0.049344]
[1773593338686,0.05111813,71464.0,71453.0,0.00737]
[1773593338892,0.0014,71463.0,71453.0,0.00737]
[1773593339090,0.043369,71463.0,71453.0,0.00737]
[1773593339294,0.00011,71462.0,71453.0,0.00737]
[1773593339692,0.04208,71462.0,71453.0,0.00737]
[1773593340093,0.04197,71461.0,71453.0,0.00737]
[1773593340293,0.041971,71460.0,71453.0,0.00737]
[1773593341413,0.041971,71460.0,71448.0,0.041977]
[1773593341698,0.041971,71460.0,71445.0,0.03551666]
[1773593341699,0.04208,71462.0,71449.0,0.041977]
[1773593341900,0.04208,71462.0,71450.0,0.1300882]
[1773593346707,0.0014,71461.0,71450.0,0.1300882]
[1773593347913,0.04208,71462.0,71450.0,0.1300882]
[1773593347914,0.00011,71462.0,71451.0,0.041975]
[1773593348116,0.0014,71460.0,71451.0,0.09445888]
[1773593348315,0.0014,71459.0,71451.0,0.09445888]
[1773593348517,0.0014,71458.0,71451.0,0.09445888]
[1773593348716,0.04197,71462.0,71450.0,0.1300882]
[1773593348914,0.0014,71461.0,71450.0,0.1300882]
[1773593349218,6.579e-05,71460.0,71451.0,0.041976]
[1773593349418,0.00146579,71460.0,71451.0,0.041976]
[1773593349820,6.579e-05,71460.0,71451.0,0.041976]
[1773593350020,0.0014,71459.0,71451.0,0.041976]
[1773593352025,0.0014,71458.0,71451.0,0.041976]
[1773593352327,6.579e-05,71460.0,71451.0,0.041976]
[1773593352525,0.0014,71459.0,71451.0,0.041976]
[1773593352826,0.0014,71459.0,71450.0,0.0881122]
[1773593353924,0.0014,71459.0,71450.0,0.1300882]
[1773593354331,0.0014,71459.0,71448.0,0.041977]
[1773593355419,0.0014,71459.0,71444.0,0.04198]
[1773593355714,0.03675291,71456.0,71444.0,0.04198]
[1773593355924,0.02628503,71456.0,71444.0,0.04198]
[1773593356120,0.0014,71459.0,71444.0,0.04198]
[1773593356323,0.0014,71458.0,71444.0,0.04198]
[1773593356514,0.0014,71457.0,71444.0,0.04198]
[1773593356720,0.043373,71457.0,71444.0,0.04198]
[1773593356920,0.043373,71457.0,71445.0,0.041979]
[1773593359221,0.0014,71457.0,71443.0,0.04198]
[1773593359421,0.0014,71457.0,71442.0,0.00737]
[1773593359621,0.041974,71454.0,71442.0,0.049351]
[1773593360127,0.041974,71454.0,71443.0,0.04198]
[1773593360925,0.0014,71457.0,71442.0,0.00737]
[1773593362034,0.041974,71455.0,71442.0,0.049351]
[1773593362426,0.041974,71455.0,71442.0,0.041981]
[1773593362627,0.041974,71455.0,71443.0,0.04198]
[1773593364018,0.041974,71454.0,71443.0,0.04198]
[1773593376344,0.041974,71454.0,71441.0,0.041981]
[1773593376737,0.05334972,71457.0,71438.0,0.041983]
[1773593377542,0.05194972,71456.0,71434.0,0.00737]
[1773593377843,0.05194972,71456.0,71437.0,0.041984]
[1773593378946,0.041977,71450.0,71437.0,0.041984]
[1773593379134,0.0014,71449.0,71437.0,0.041984]
[1773593382543,0.041978,71448.0,71434.0,0.00737]
[1773593382744,0.0014,71449.0,71434.0,0.049355]
[1773593382949,0.041979,71447.0,71435.0,0.041985]
[1773593383144,0.041979,71447.0,71436.0,0.041984]
[1773593385248,0.041979,71447.0,71434.0,0.041986]
[1773593385547,0.041979,71447.0,71435.0,0.041985]
[1773593385849,0.09392772,71448.0,71435.0,0.041985]
[1773593386641,0.041978,71447.0,71435.0,0.041985]
[1773593389748,0.05194972,71448.0,71435.0,0.041985]
[1773593389949,0.041981,71443.0,71431.0,0.041987]
[1773593390155,0.0014,71442.0,71431.0,0.041987]
[1773593391456,0.0014,71442.0,71432.0,0.041987]
[1773593392443,0.0014,71442.0,71430.0,0.08820301]
[1773593392644,0.041982,71441.0,71429.0,0.041988]
[1773593394353,0.0014,71440.0,71429.0,0.041988]
[1773593395258,0.0014,71440.0,71426.0,0.04936]
[1773593395760,0.041983,71439.0,71427.0,0.04199]
[1773593396547,0.041983,71439.0,71428.0,0.041989]
[1773593400158,0.0014,71440.0,71428.0,0.041989]
[1773593403465,0.043382,71440.0,71429.0,0.041989]
[1773593406171,0.0014,71439.0,71430.0,0.08820301]
[1773593407861,0.0014,71439.0,71429.0,0.041989]
[1773593410770,0.043383,71439.0,71427.0,0.04199]
[1773593411570,0.0014,71439.0,71427.0,0.04199]
[1773593412166,0.0014,71439.0,71423.0,0.04983305]
[1773593413473,0.0014,71439.0,71428.0,0.041989]
[1773593413672,0.0014,71439.0,71429.0,0.041988]
[1773593414070,0.0014,71439.0,71427.0,0.04199]
[1773593414374,0.0014,71439.0,71428.0,0.041989]
[1773593427782,0.0014,71439.0,71429.0,0.041989]
[1773593431191,0.0014,71439.0,71430.0,0.041988]
[1773593433197,0.0014,71439.0,71427.0,0.04199]
[1773593433993,0.043383,71439.0,71427.0,0.04199]
[1773593435398,0.041984,71437.0,71425.0,0.041991]
[1773593437798,0.041984,71437.0,71426.0,0.04199]
[1773593438008,0.05126239,71439.0,71424.0,0.041991]
[1773593439094,0.041985,71436.0,71423.0,0.041992]
[1773593439296,0.041986,71435.0,71423.0,0.041992]
[1773593442904,0.05126239,71439.0,71421.0,0.041993]
[1773593443105,0.041986,71435.0,71423.0,0.041992]
[1773593443791,0.041986,71435.0,71419.0,0.00747256]
[1773593443997,0.041986,71435.0,71400.0,0.08820301]
[1773593443998,0.041995,71419.0,71396.0,0.58107578]
[1773593444195,0.04986239,71437.0,71409.0,0.08820301]
[1773593444396,0.04986239,71435.0,71412.0,0.05045139]
[1773593444596,0.04986239,71433.0,71412.0,0.05045139]
[1773593444999,0.041994,71420.0,71406.0,0.05045139]
[1773593445201,0.00150256,71419.0,71406.0,0.05045139]
[1773593445408,0.00150256,71419.0,71405.0,0.042003]
[1773593446797,0.00150256,71419.0,71397.0,0.00737]
[1773593446798,0.00150256,71419.0,71406.0,0.042002]
[1773593446998,0.00150256,71419.0,71407.0,0.05045139]
[1773593450303,0.0014,71418.0,71400.0,0.08820301]
[1773593450496,0.0014,71417.0,71401.0,0.05045139]
[1773593450690,0.041991,71425.0,71401.0,0.05045139]
[1773593450898,0.04986239,71437.0,71401.0,0.06150731]
[1773593451097,0.0014,71436.0,71411.0,0.05045139]
[1773593451296,0.0014,71435.0,71411.0,0.05045139]
[1773593452102,0.04199,71428.0,71415.0,0.05656971]
[1773593452396,0.0014,71427.0,71415.0,0.05656971]
[1773593455208,0.04339,71427.0,71415.0,0.05656971]
[1773593455507,0.041991,71426.0,71415.0,0.05656971]
[1773593460607,0.14627354,71425.0,71406.0,0.00072005]
[1773593460909,0.08824517,71420.0,71406.0,0.00072005]
[1773593461112,0.041996,71417.0,71406.0,0.00072005]
[1773593461314,0.0014,71416.0,71406.0,0.00072005]
[1773593461908,0.041995,71419.0,71406.0,0.04272205]
[1773593462108,0.0014,71418.0,71407.0,0.05656971]
[1773593463012,0.0014,71418.0,71406.0,0.00072005]
[1773593463013,0.041998,71413.0,71406.0,0.00072005]
[1773593463313,0.041997,71415.0,71406.0,0.00072005]
[1773593463812,0.041996,71417.0,71406.0,0.00072005]
[1773593464009,0.0014,71416.0,71406.0,0.00072005]
[1773593464208,0.0014,71416.0,71402.0,0.05656971]
[1773593464409,0.041997,71416.0,71402.0,0.05656971]
[1773593464603,0.0014,71415.0,71402.0,0.05656971]
[1773593464806,0.05802837,71410.0,71384.0,0.042015]
[1773593465011,0.042003,71405.0,71391.0,0.05656971]
[1773593465313,0.043402,71407.0,71394.0,0.05656971]
[1773593465813,0.042004,71404.0,71394.0,0.05656971]
[1773593466617,0.05942837,71403.0,71382.0,0.042016]
[1773593466914,0.042008,71397.0,71383.0,0.05656971]
[1773593467317,0.042008,71397.0,71383.0,0.05796971]
[1773593468523,0.08824517,71400.0,71383.0,0.05796971]
[1773593469612,0.08824517,71410.0,71385.0,0.05656971]
[1773593469809,0.12312199,71430.0,71374.0,0.00016943]
[1773593469810,0.08824517,71395.0,71374.0,0.00016943]
[1773593470009,0.042014,71387.0,71374.0,0.05813914]
[1773593470319,0.08824517,71390.0,71374.0,0.00016943]
[1773593470515,0.08824517,71390.0,71374.0,0.05673914]
[1773593470821,0.042012,71390.0,71378.0,0.05656971]
[1773593471413,0.042014,71387.0,71378.0,0.05656971]
[1773593471718,0.042015,71385.0,71374.0,0.00016943]
[1773593471919,0.042014,71387.0,71375.0,0.0014]
[1773593472315,0.042014,71387.0,71376.0,0.0014]
[1773593472521,0.08824517,71390.0,71376.0,0.0014]
[1773593472915,0.08824517,71386.0,71374.0,0.00016943]
[1773593473116,0.08824517,71384.0,71374.0,0.00016943]
[1773593473322,0.08824517,71384.0,71374.0,4.3e-07]
[1773593473712,0.14627354,71384.0,71374.0,4.3e-07]
[1773593474220,9.907e-05,71383.0,71374.0,4.3e-07]
[1773593474421,0.042019,71379.0,71374.0,4.3e-07]
[1773593474621,0.042017,71382.0,71374.0,4.3e-07]
[1773593475024,9.907e-05,71383.0,71374.0,4.3e-07]
[1773593475422,0.0014,71389.0,71374.0,0.05657014]
[1773593475624,0.0014,71389.0,71376.0,0.05656971]
[1773593475922,0.042012,71390.0,71376.0,0.05656971]
[1773593476227,0.042009,71395.0,71376.0,0.05656971]
[1773593476417,6.993e-05,71394.0,71381.0,0.05656971]
[1773593476617,0.042006,71401.0,71388.0,0.042012]
[1773593476818,0.042004,71403.0,71390.0,0.042012]
[1773593477217,0.042004,71403.0,71388.0,0.05656971]
[1773593477218,0.043405,71402.0,71388.0,0.042013]
[1773593477417,0.042005,71402.0,71389.0,0.05656971]
[1773593479733,0.042006,71400.0,71389.0,0.05656971]
[1773593480026,0.042006,71400.0,71384.0,0.0014]
[1773593480027,0.0014,71402.0,71385.0,0.05656971]
[1773593480217,0.0014,71402.0,71384.0,0.043415]
[1773593480731,0.042007,71399.0,71385.0,0.042014]
[1773593481725,0.0014,71402.0,71384.0,0.0014]
[1773593481932,0.08824517,71400.0,71384.0,0.0014]
[1773593482324,0.05857541,71402.0,71384.0,0.0014]
[1773593482727,0.042006,71400.0,71387.0,0.042013]
[1773593484134,0.10058041,71402.0,71387.0,0.042013]
[1773593485430,0.10058041,71402.0,71388.0,0.042013]
[1773593485627,0.0014,71402.0,71384.0,0.06014238]
[1773593485831,0.0014,71402.0,71388.0,0.05874238]
[1773593487033,0.0014,71402.0,71390.0,0.042011]
[1773593489437,0.0014,71414.0,71391.0,0.05874238]
[1773593489637,0.0014,71415.0,71399.0,0.042006]
[1773593489831,0.041999,71412.0,71399.0,0.042006]
[1773593490032,0.041998,71414.0,71401.0,0.042005]
[1773593490233,0.043398,71413.0,71401.0,0.042005]
[1773593490633,0.043398,71413.0,71399.0,0.042006]
[1773593490838,0.041999,71412.0,71399.0,0.042006]
[1773593491336,0.05717541,71409.0,71386.0,0.042014]
[1773593491638,0.042006,71401.0,71389.0,0.042012]
[1773593491939,0.042006,71401.0,71388.0,0.042012]
[1773593492824,0.042006,71401.0,71389.0,0.042012]
[1773593493833,0.042006,71401.0,71382.0,0.06014238]
[1773593493834,0.08824517,71410.0,71390.0,0.05874238]
[1773593494029,0.0014,71409.0,71396.0,0.042008]
[1773593494737,0.0014,71409.0,71397.0,0.042007]
[1773593495326,0.13024517,71410.0,71397.0,0.042007]
[1773593495531,0.08824517,71410.0,71393.0,0.05874238]
[1773593495731,0.0014,71414.0,71403.0,0.042004]
[1773593499254,0.0014,71414.0,71401.0,0.042005]
[1773593499633,0.043398,71414.0,71401.0,0.042005]
[1773593501538,0.043398,71414.0,71398.0,0.0014]
[1773593501729,0.043398,71414.0,71402.0,0.042004]
[1773593505556,0.0014,71414.0,71403.0,0.042004]
[1773593505856,0.043398,71414.0,71402.0,0.042004]
[1773593510362,0.041998,71413.0,71402.0,0.042004]
[1773593510561,0.0014,71414.0,71402.0,0.042004]
[1773593514058,0.05599779,71427.0,71400.0,0.08828501]
[1773593514360,0.041992,71424.0,71401.0,0.0548033]
[1773593514667,0.041992,71424.0,71413.0,0.041998]
[1773593514965,0.05669777,71431.0,71407.0,0.0548033]
[1773593515165,0.04199,71428.0,71406.0,0.0548033]
[1773593515966,0.04199,71428.0,71414.0,0.041997]
[1773593516167,0.0014,71427.0,71414.0,0.041997]
[1773593516561,0.0014,71426.0,71414.0,0.041997]
[1773593516760,0.0014,71426.0,71412.0,0.041998]
[1773593516961,0.13027801,71422.0,71410.0,0.042]
[1773593517159,0.05599779,71424.0,71412.0,0.041999]
[1773593518169,0.05599779,71424.0,71408.0,0.0014]
[1773593518966,0.0014,71426.0,71414.0,0.041997]
[1773593520171,0.043391,71426.0,71414.0,0.041997]
[1773593521475,0.041991,71425.0,71412.0,0.041998]
[1773593521862,0.041991,71425.0,71413.0,0.041998]
[1773593524773,0.0014,71426.0,71408.0,0.0014]
[1773593524774,0.0014,71426.0,71415.0,0.041997]
[1773593525575,0.04199,71428.0,71415.0,0.041997]
[1773593525774,0.0014,71427.0,71415.0,0.041997]
[1773593526275,0.0014,71426.0,71415.0,0.041997]
[1773593526575,0.04199,71428.0,71415.0,0.041997]
[1773593526775,0.0014,71427.0,71415.0,0.041997]
[1773593526976,0.04199,71428.0,71415.0,0.041997]
[1773593527176,0.0014,71427.0,71415.0,0.041997]
[1773593527376,0.04339,71427.0,71415.0,0.041997]
[1773593527676,0.0014,71426.0,71415.0,0.041997]
[1773593527976,0.04199,71427.0,71415.0,0.041997]
[1773593528177,0.0014,71426.0,71415.0,0.041997]
[1773593528477,0.04199,71427.0,71415.0,0.041997]
[1773593528673,0.0014,71426.0,71415.0,0.041997]
[1773593528981,0.04199,71427.0,71415.0,0.041997]
[1773593529178,0.041992,71424.0,71412.0,0.041998]
[1773593529579,0.041992,71424.0,71412.0,0.041999]
[1773593530073,0.041992,71424.0,71413.0,0.041998]
[1773593531878,0.09938879,71426.0,71413.0,0.041998]
[1773593532082,0.043391,71426.0,71413.0,0.041998]
[1773593533080,0.043391,71426.0,71414.0,0.041997]
[1773593534881,0.041991,71425.0,71412.0,0.041998]
[1773593535279,0.041991,71425.0,71413.0,0.041998]
[1773593537285,0.041991,71425.0,71414.0,0.041997]
[1773593537680,0.041992,71424.0,71412.0,0.041999]
[1773593537885,0.05599779,71424.0,71412.0,0.041999]
[1773593538192,0.05599779,71424.0,71413.0,0.041998]
[1773593538387,0.041991,71425.0,71413.0,0.041998]
[1773593539481,0.0014,71427.0,71420.0,0.041994]
[1773593545098,0.0014,71427.0,71421.0,0.041993]
[1773593546402,0.041987,71432.0,71410.0,0.0548033]
[1773593546403,0.00069082,71432.0,71419.0,0.05422039]
[1773593546702,0.08828501,71430.0,71412.0,0.05422039]
[1773593546901,0.041989,71429.0,71416.0,0.041996]
[1773593547105,0.04199,71428.0,71416.0,0.041996]
[1773593547496,0.04199,71427.0,71415.0,0.041997]
[1773593547808,0.0014,71426.0,71415.0,0.041997]
[1773593554308,0.043391,71426.0,71415.0,0.041997]
[1773593555112,0.041991,71425.0,71414.0,0.041997]
[1773593559218,0.0014,71426.0,71414.0,0.041997]
[1773593561011,0.043391,71426.0,71414.0,0.041997]
[1773593564121,0.041977,71449.0,71436.0,0.041984]
[1773593564419,0.041977,71449.0,71416.0,0.08828501]
[1773593564420,0.20771504,71448.0,71429.0,0.05422039]
[1773593564624,0.0014,71447.0,71429.0,0.05422039]
[1773593564922,0.05204478,71451.0,71429.0,0.05422039]
[1773593564923,0.0014,71446.0,71429.0,0.05422039]
[1773593565117,0.0014,71445.0,71429.0,0.05422039]
[1773593565317,0.001,71449.0,71438.0,0.041983]
[1773593565517,0.002,71449.0,71437.0,0.09620439]
[1773593565722,0.0014,71448.0,71437.0,0.09620439]
[1773593566022,0.0014,71448.0,71439.0,0.041982]
[1773593566225,0.0014,71448.0,71437.0,0.05422039]
[1773593566226,0.002,71449.0,71442.0,0.041981]
[1773593566628,0.002,71449.0,71440.0,0.041982]
[1773593566933,0.00662,71449.0,71440.0,0.041982]
[1773593568028,0.00662,71449.0,71439.0,0.05422039]
[1773593568235,0.00662,71449.0,71438.0,0.041983]
[1773593568730,0.00662,71449.0,71436.0,0.041984]
[1773593569232,0.00662,71449.0,71437.0,0.041984]
[1773593571420,0.00662,71449.0,71438.0,0.041983]
[1773593583622,0.00662,71449.0,71429.0,0.00737]
[1773593583934,0.04198,71445.0,71433.0,0.041986]
[1773593584124,0.0014,71444.0,71433.0,0.041986]
[1773593587831,0.00662,71449.0,71439.0,0.041983]
[1773593588039,0.0014,71448.0,71440.0,0.041982]
[1773593588232,0.0014,71448.0,71441.0,0.041981]
[1773593588439,0.0014,71451.0,71435.0,0.05285183]
[1773593588736,0.0014,71453.0,71435.0,0.05285183]
[1773593590035,0.041973,71457.0,71435.0,0.05285183]
[1773593590428,0.05063122,71466.0,71445.0,0.00737]
[1773593590631,0.0014,71465.0,71445.0,0.00737]
[1773593590940,0.05203122,71465.0,71445.0,0.00737]
[1773593591132,0.05203122,71464.0,71446.0,0.041979]
[1773593591933,0.041971,71460.0,71446.0,0.041979]
[1773593592128,0.017671,71460.0,71446.0,0.041979]
[1773593592637,0.04197,71462.0,71442.0,0.05285183]
[1773593592832,0.04197,71461.0,71447.0,0.041978]
[1773593593033,0.04197,71461.0,71442.0,0.05425183]
[1773593593334,0.01,71458.0,71449.0,0.041977]
[1773593594038,0.001,71464.0,71449.0,0.05285183]
[1773593594231,0.00736,71468.0,71449.0,0.05285183]
[1773593594429,0.0014,71467.0,71451.0,0.05285183]
[1773593594739,0.0014,71467.0,71456.0,0.041973]
[1773593594938,0.0014,71466.0,71456.0,0.041973]
[1773593595550,0.0014,71466.0,71455.0,0.05285183]
[1773593596935,0.0014,71466.0,71451.0,0.05285183]
[1773593597140,0.0014,71467.0,71462.0,0.041969]
[1773593597333,0.0014,71467.0,71458.0,0.05285183]
[1773593597539,0.00876,71468.0,71458.0,0.05285183]
[1773593597729,0.00876,71468.0,71460.0,0.04197]